fUST/lending_fUST_20251012
["ID","MTS","AMOUNT","RATE_DAILY","PERIOD"]
[390989438,1760275150315,-467.90484198,0.0002082,2]
[390989439,1760275150341,-367.16834775,0.00020864,2]
[390989440,1760275150376,-326.24882054,0.00020864,2]
[390989441,1760275157095,-2122.64563892,0.0002023,2]
[390989442,1760275157381,-10000.01,0.0002023,2]
[390989443,1760275162273,-10000.01,0.0002023,2]
[390989444,1760275162662,-10000.01,0.0002023,2]
[390989445,1760275162791,-10000.01,0.0002023,2]
[390989446,1760275164664,-10000.01,0.0002023,2]
[390989447,1760275165037,-10000.01,0.0002023,2]
[390989448,1760275165332,-10000.01,0.0002023,2]
[390989449,1760275165564,-5000.0,0.00020028,2]
[390989450,1760275165601,-0.01,0.0002023,2]
[390989451,1760275165855,-10000.01,0.0002023,2]
[390989452,1760275166059,-10000.01,0.0002023,2]
[390989453,1760275168456,-3910.14805658,0.0002023,2]
[390989454,1760275180534,593.8006395,0.00030253,60]
[390989455,1760275184157,-438.8251809,0.0002037,2]
[390989456,1760275186055,-1000.0,0.00020605,2]
[390989457,1760275188461,500.0,0.00030253,60]
[390989458,1760275188684,500.0,0.00030253,60]
[390989459,1760275188933,317.0,0.00030253,60]
[390989460,1760275189753,5000.0,0.00020605,2]
[390989461,1760275198201,500.0,0.00030253,60]
[390989462,1760275198309,500.0,0.00030253,60]
[390989463,1760275198624,634.4,0.00030253,60]
[390989464,1760275199387,515.39,0.00018013,2]
[390989465,1760275200057,1030.78,0.00018871,2]
[390989466,1760275200486,1546.17,0.00019728,2]
[390989467,1760275200948,2061.56,0.00020586,2]
[390989468,1760275202203,-1427.0,0.00020713,2]
[390989469,1760275204525,-1427.0,0.00020967,2]
[390989470,1760275213128,5000.0,0.00020967,2]
[390989471,1760275219623,1427.0,0.00020733,2]
[390989472,1760275224346,1427.0,0.00020845,2]
[390989473,1760275225007,329.11888567,0.0002037,2]
[390989474,1760275232440,500.0,0.00030253,60]
[390989475,1760275232667,463.28,0.00030253,60]
[390989476,1760275235935,5000.0,0.00020967,2]
[390989477,1760275238262,-300.0,0.00020999,2]
[390989478,1760275239419,2043.810766,0.00020253,2]
[390989479,1760275259217,5000.0,0.00020999,2]
[390989480,1760275260722,500.0,0.00020718,2]
[390989481,1760275262643,300.0,0.00020999,2]
[390989482,1760275269619,246.83916425,0.00020998,2]
[390989483,1760275279196,209.0,0.0002,30]
[390989484,1760275280138,500.0,0.00030253,60]
[390989485,1760275280385,515.27,0.00030253,60]
[390989486,1760275282057,5000.0,0.00021,2]
[390989488,1760275284001,449.8,0.00018021,2]
[390989489,1760275284434,899.59,0.00018879,2]
[390989490,1760275285050,1349.39,0.00019737,2]
[390989491,1760275285756,1545.39083575,0.00020595,2]
[390989492,1760275285781,253.78916425,0.00020595,2]
[390989495,1760275305914,1613.24813231,0.00021,2]
[390989496,1760275306495,500.0,0.00030253,60]
[390989497,1760275306732,500.0,0.00030253,60]
[390989498,1760275309900,500.0,0.00030253,60]
[390989499,1760275310176,500.0,0.00030253,60]
[390989500,1760275318211,275.48332103,0.00030253,120]
[390989501,1760275322712,300.0,0.00020999,2]
[390989502,1760275326037,500.0,0.00030253,60]
[390989503,1760275344214,500.0,0.00030253,60]
[390989504,1760275344469,365.56170626,0.00030253,60]
[390989505,1760275364543,392.55,0.00018018,2]
[390989506,1760275364972,785.1,0.00018876,2]
[390989507,1760275365437,1177.65,0.00019734,2]
[390989508,1760275366379,1570.19,0.00020592,2]
[390989509,1760275367146,161.95246124,0.00016,2]
[390989510,1760275376163,206.24785922,0.00020967,2]
[390989511,1760275378396,370.87490045,0.00020967,2]
[390989512,1760275380508,482.10560211,0.00020967,2]
[390989513,1760275409801,205.14070986,0.000209,2]
[390989514,1760275421532,500.0,0.00030251,60]
[390989515,1760275421761,500.0,0.00030251,60]
[390989517,1760275442712,300.0,0.00020999,2]
[390989518,1760275444619,342.59,0.00018015,2]
[390989519,1760275445065,685.18,0.00018873,2]
[390989520,1760275445537,1027.76,0.00019731,2]
[390989521,1760275445973,1370.35,0.00020589,2]
[390989522,1760275463246,500.0,0.00030251,60]
[390989523,1760275503096,300.0,0.00020999,2]
[390989524,1760275516385,604.84623791,0.00030251,60]
[390989525,1760275525487,298.99,0.00018028,2]
[390989526,1760275525902,597.97,0.00018886,2]
[390989527,1760275526321,896.96,0.00019745,2]
[390989528,1760275526748,1195.94,0.00020603,2]
[390989533,1760275581753,205.14070986,0.000209,2]
[390989534,1760275586159,158.54555664,0.00020967,2]
[390989536,1760275587879,285.38200195,0.00020967,2]
[390989537,1760275589462,507.34578124,0.00020967,2]
[390989538,1760275591098,195.18305096,0.0002094,5]
[390989539,1760275593173,1248.15090292,0.00020967,2]
[390989540,1760275605020,260.93,0.0001802,2]
[390989541,1760275605470,521.87,0.00018878,2]
[390989543,1760275605923,782.8,0.00019736,2]
[390989544,1760275606387,1043.73,0.00020595,2]
[390989548,1760275680798,867.79008381,0.00020605,2]
[390989549,1760275684462,227.72,0.00018012,2]
[390989550,1760275684891,455.45,0.00018869,2]
[390989551,1760275685360,683.17,0.00019727,2]
[390989552,1760275685797,910.89,0.00020585,2]
[390989555,1760275711085,4245.65991619,0.0002,20]
[390989556,1760275711109,6944.6319622,0.0002,20]
[390989557,1760275711981,3055.3780378,0.0002,2]
[390989558,1760275712003,10000.01,0.0002,2]
[390989559,1760275712028,10000.01,0.0002,2]
[390989560,1760275712051,10000.01,0.0002,2]
[390989561,1760275712076,10000.01,0.0002,2]
[390989562,1760275712099,10000.01,0.0002,2]
[390989563,1760275712122,6037.8178997,0.0002,2]
[390989566,1760275752037,205.14070986,0.000209,2]
[390989567,1760275766316,198.74,0.00018011,2]
[390989568,1760275766817,397.48,0.00018869,2]
[390989569,1760275767252,596.22,0.00019726,2]
[390989570,1760275767692,794.96,0.00020584,2]
[390989572,1760275808471,877.3784713,0.0002099,2]
[390989580,1760275832723,-160.0,0.00021,2]
[390989581,1760275832732,-442.61685635,0.00021,2]
[390989582,1760275832783,-834.3094557,0.00021,2]
[390989583,1760275832794,-695.21820971,0.00021,2]
[390989584,1760275832844,-73163.68082886,0.00021,2]
[390989623,1760275838880,-1256900.62203329,0.00021,2]
[390989630,1760275840645,-213267.61049535,0.00021,2]
[390989631,1760275840706,-1326.66510949,0.00021,2]
[390989632,1760275840717,-23845.34268919,0.00021,2]
[390989636,1760275843071,500.0,0.00019612,2]
[390989637,1760275843688,-2079.32639563,0.00021,2]
[390989638,1760275843701,-315.98676429,0.00021,2]
[390989639,1760275843746,-420.30498832,0.00021,2]
[390989640,1760275843821,500.0,0.00020708,2]
[390989643,1760275846753,-436.34609954,0.00021,2]
[390989644,1760275846764,-641.1725238,0.00021,2]
[390989652,1760275847930,173.45,0.00018016,2]
[390989653,1760275848365,346.89,0.00018874,2]
[390989654,1760275848858,520.34,0.00019732,2]
[390989655,1760275849400,693.78,0.0002059,2]
[390989656,1760275868033,168.0,0.00020839,2]
[390989657,1760275872817,168.0,0.000202,2]
[390989658,1760275878472,168.0,0.00020256,2]
[390989659,1760275883484,168.0,0.00020652,2]
[390989660,1760275883846,500.0,0.00030251,60]
[390989662,1760275888084,168.0,0.00020308,2]
[390989663,1760275891960,2218.93493853,0.00020946,2]
[390989664,1760275893728,168.0,0.00020393,2]
[390989665,1760275898684,168.0,0.00020398,2]
[390989666,1760275901940,500.0,0.00030251,60]
[390989668,1760275909483,501.96365242,0.00030251,60]
[390989669,1760275929050,151.37,0.00018008,2]
[390989670,1760275929311,302.74,0.00018865,2]
[390989671,1760275929732,454.11,0.00019723,2]
[390989672,1760275930233,605.48,0.0002058,2]
[390989673,1760275933032,500.0,0.00030251,60]
[390989674,1760275934745,601.69736919,0.00030251,60]
[390989675,1760275936531,500.82683023,0.00030251,60]
[390989676,1760275941973,500.0,0.00030251,60]
[390989677,1760275952609,500.0,0.00030251,60]
[390989678,1760275952996,264.54,0.00030251,60]
[390989679,1760275970042,502.08677231,0.00030251,60]
[390989680,1760275970731,500.0,0.00030251,60]
[390989681,1760275972591,500.0,0.00030251,60]
[390989683,1760275980099,500.0,0.00030251,60]
[390989684,1760275980131,1542.73792677,0.00020592,2]
[390989687,1760275991192,500.0,0.00030251,60]
[390989688,1760275994653,500.0,0.00030251,60]
[390989689,1760276001634,500.0,0.00030251,60]
[390989690,1760276001691,500.0,0.00030251,60]
[390989691,1760276003489,500.0,0.00030251,60]
[390989692,1760276009713,150.0,0.0001813,2]
[390989693,1760276010175,264.21,0.00018993,2]
[390989694,1760276010615,396.32,0.00019857,2]
[390989695,1760276011367,500.0,0.00030231,60]
[390989696,1760276011626,528.42,0.0002072,2]
[390989697,1760276012737,500.0,0.00030231,60]
[390989698,1760276023689,607.91700275,0.00030231,60]
[390989699,1760276026003,500.0,0.00030231,60]
[390989700,1760276027564,500.0,0.00030231,60]
[390989701,1760276029688,500.0,0.00030231,60]
[390989702,1760276041066,500.0,0.00030231,60]
[390989704,1760276045936,500.0,0.00030231,60]
[390989705,1760276046216,500.0,0.00030231,60]
[390989706,1760276046589,500.0,0.00030231,60]
[390989707,1760276046733,500.0,0.00030231,60]
[390989708,1760276047177,500.0,0.00030231,60]
[390989709,1760276047414,325.26313432,0.00030231,60]
[390989711,1760276054378,500.0,0.00030231,60]
[390989712,1760276056690,500.0,0.00030231,60]
[390989714,1760276062799,500.0,0.00030231,60]
[390989715,1760276064604,500.0,0.00030231,60]
[390989716,1760276066515,461.63971521,0.00030231,60]
[390989717,1760276069721,500.0,0.00030231,60]
[390989718,1760276069785,500.0,0.00030231,60]
[390989719,1760276083805,500.0,0.00030231,60]
[390989720,1760276090957,150.0,0.00018138,2]
[390989721,1760276091373,230.13,0.00019002,2]
[390989722,1760276091867,345.19,0.00019866,2]
[390989723,1760276092286,460.26,0.00020729,2]
[390989724,1760276092370,501.44,0.00030231,60]
[390989725,1760276092765,500.0,0.00030231,60]
[390989726,1760276093013,500.0,0.00030231,60]
[390989727,1760276093265,522.45,0.00030231,60]
[390989728,1760276093742,500.0,0.00030231,60]
[390989729,1760276094001,233.97,0.00030231,60]
[390989732,1760276097553,8814.43,0.00020262,2]
[390989733,1760276097574,10000.01,0.00020262,2]
[390989734,1760276097597,10000.01,0.00020262,2]
[390989735,1760276097619,10000.01,0.00020262,2]
[390989736,1760276097640,10000.01,0.00020262,2]
[390989737,1760276097661,4488.6803369,0.00020262,2]
[390989738,1760276104493,500.0,0.00030231,60]
[390989739,1760276112349,500.0,0.00030231,60]
[390989740,1760276119220,166.28573359,0.00030231,60]
[390989741,1760276119430,191.873428,0.00020235,2]
[390989742,1760276120742,505.23165234,0.00030231,60]
[390989743,1760276121416,468.76,0.00030231,60]
[390989744,1760276123275,500.0,0.00030231,60]
[390989745,1760276134679,188.56000202,0.00030231,60]
[390989746,1760276134993,500.0,0.00030231,60]
[390989747,1760276151980,501.23123842,0.00030231,60]
[390989748,1760276153673,500.0,0.00030231,60]
[390989749,1760276162336,500.0,0.00030231,60]
[390989750,1760276166376,258.71931985,0.00030231,60]
[390989751,1760276168715,150.0,0.00018326,2]
[390989752,1760276168979,500.0,0.00030231,60]
[390989753,1760276169309,183.43,0.00030231,60]
[390989754,1760276169341,199.95,0.00019198,2]
[390989755,1760276169604,299.93,0.00020071,2]
[390989756,1760276170096,399.9,0.00020944,2]
[390989757,1760276172468,500.0,0.00030231,60]
[390989758,1760276174269,500.0,0.00030231,60]
[390989760,1760276180736,500.0,0.00030231,60]
[390989761,1760276183275,506.15442407,0.00030231,60]
[390989762,1760276190168,3467.08584145,0.00020737,2]
[390989782,1760276197294,500.0,0.00030231,60]
[390990005,1760276204449,500.0,0.00030231,60]
[390990015,1760276204701,302.89,0.00030231,60]
[390990131,1760276208226,500.0,0.00030231,60]
[390990141,1760276208476,197.52,0.00030231,60]
[390990390,1760276216265,500.0,0.00030231,60]
[390990398,1760276216485,500.0,0.00030231,60]
[390990401,1760276216556,500.0,0.00030231,60]
[390990408,1760276216728,500.0,0.00030231,60]
[390990418,1760276216959,500.0,0.00030231,60]
[390990426,1760276217197,500.0,0.00030231,60]
[390990433,1760276217360,500.0,0.00030231,60]
[390990436,1760276217431,297.05,0.00030231,60]
[390990790,1760276229624,500.0,0.00030231,60]
[390990981,1760276236461,500.0,0.00030231,60]
[390991004,1760276238030,500.0,0.00030231,60]
[390991036,1760276239890,500.0,0.00030231,60]
[390991088,1760276243220,500.0,0.00030231,60]
[390991167,1760276247900,150.0,0.00018319,2]
[390991175,1760276248332,173.23,0.00019191,2]
[390991182,1760276248746,259.84,0.00020063,2]
[390991227,1760276251653,500.0,0.00030231,60]
[390991301,1760276256342,346.46,0.00020936,2]
[390991333,1760276258308,500.0,0.00030231,60]
[390991362,1760276260097,500.0,0.00030231,60]
[390991369,1760276260480,177.94,0.00030231,60]
[390991525,1760276269893,500.0,0.00030231,60]
[390991627,1760276275561,500.0,0.00030231,60]
[390991822,1760276287050,481.1796261,0.00030231,60]
[390991847,1760276288388,500.0,0.00030231,60]
[390991852,1760276288613,315.19,0.00030231,60]
[390991884,1760276290317,500.0,0.00030231,60]
[390991888,1760276290489,500.0,0.00030231,60]
[390992221,1760276309735,168.0,0.00020559,2]
[390992319,1760276315479,168.0,0.00020947,2]
[390992414,1760276321205,168.0,0.00020844,2]
[390992448,1760276323041,500.35969265,0.00030237,60]
[390992450,1760276323225,501.63628169,0.00030237,60]
[390992479,1760276324976,500.0,0.00030237,60]
[390992496,1760276325919,168.0,0.00020634,2]
[390992575,1760276330405,482.15730728,0.00030237,60]
[390992578,1760276330538,168.0,0.00020183,2]
[390992625,1760276333006,150.0,0.00017996,2]
[390992635,1760276333537,150.0,0.00018853,2]
[390992642,1760276333874,224.35,0.0001971,2]
[390992651,1760276334330,299.14,0.00020567,2]
[390992864,1760276364375,489.58672877,0.00030237,60]
[390992865,1760276373181,500.0,0.00030237,60]
[390992866,1760276379609,500.0,0.00030237,60]
[390992867,1760276381488,500.0,0.00030237,60]
[390992868,1760276383756,500.0,0.00030237,60]
[390992871,1760276408858,150.0,0.00018116,2]
[390992872,1760276409835,150.0,0.00018979,2]
[390992873,1760276410311,192.91,0.00019842,2]
[390992874,1760276410403,180.21115658,0.00030237,60]
[390992875,1760276410809,257.21,0.00020705,2]
[390992876,1760276412147,296.52050198,0.00030237,60]
[390992878,1760276429843,500.0,0.00030237,60]
[390992879,1760276433783,268.2046015,0.00030237,60]
[390992880,1760276445539,500.0,0.00030237,60]
[390992881,1760276454348,500.0,0.00030237,60]
[390992882,1760276463215,499.17671403,0.00030237,60]
[390992883,1760276480650,500.0,0.00030237,60]
[390992884,1760276486453,150.0,0.00018133,2]
[390992885,1760276486901,150.0,0.00018996,2]
[390992886,1760276487347,164.27,0.0001986,2]
[390992887,1760276487757,219.03,0.00020723,2]
[390992888,1760276496458,500.0,0.00030237,60]
[390992889,1760276496771,382.33408628,0.00030237,60]
[390992890,1760276518119,627.86748041,0.00030237,60]
[390992893,1760276520869,500.0,0.00030237,60]
[390992894,1760276522736,500.0,0.00019612,2]
[390992895,1760276529971,266.68126561,0.00030237,60]
[390992896,1760276534281,500.0,0.00030237,60]
[390992897,1760276553954,181.0667701,0.00030237,60]
[390992898,1760276560784,500.0,0.00030237,60]
[390992899,1760276564654,150.0,0.00018007,2]
[390992900,1760276565072,150.0,0.00018865,2]
[390992901,1760276565500,150.0,0.00019722,2]
[390992902,1760276565964,184.24,0.0002058,2]
[390992903,1760276582136,500.0,0.00030237,60]
[390992904,1760276583601,500.0,0.00030237,60]
[390992905,1760276592288,282.09703335,0.00030237,60]
[390992906,1760276600380,500.0,0.00030237,60]
[390992907,1760276600638,500.0,0.00030237,60]
[390992908,1760276600861,500.0,0.00030237,60]
[390992909,1760276601101,500.0,0.00030237,60]
[390992910,1760276601353,500.0,0.00030237,60]
[390992911,1760276601580,500.0,0.00030237,60]
[390992912,1760276601934,500.0,0.00030237,60]
[390992913,1760276602178,352.94,0.00030237,60]
[390992914,1760276603935,500.0,0.00030237,60]
[390992915,1760276604193,500.0,0.00030237,60]
[390992917,1760276606017,500.0,0.00030238,60]
[390992918,1760276606242,500.0,0.00030238,60]
[390992919,1760276607430,-200000.0,0.00021,2]
[390992920,1760276608602,481.00306764,0.00030238,60]
[390992921,1760276611852,502.31385421,0.00030238,60]
[390992922,1760276613981,500.0,0.00030238,60]
[390992923,1760276616756,500.0,0.00030238,60]
[390992924,1760276618304,500.0,0.00019612,2]
[390992928,1760276618468,500.0,0.00030238,60]
[390992951,1760276618994,500.0,0.00030238,60]
[390993092,1760276623192,500.0,0.00030238,60]
[390993130,1760276624414,500.0,0.00030238,60]
[390993131,1760276624640,500.0,0.00030238,60]
[390993132,1760276627791,1386.92914309,0.00019711,2]
[390993133,1760276628140,1386.92914309,0.00019879,2]
[390993134,1760276628502,1386.92914309,0.00020113,2]
[390993135,1760276628823,1386.92914309,0.00020301,2]
[390993136,1760276629152,1386.92914311,0.00020738,2]
[390993137,1760276630682,500.0,0.00030238,60]
[390993138,1760276630906,500.0,0.00030238,60]
[390993139,1760276631143,162.24838079,0.00030238,60]
[390993140,1760276635590,500.0,0.00030238,60]
[390993141,1760276635741,500.0,0.00030238,60]
[390993142,1760276635852,500.0,0.00030238,60]
[390993143,1760276636009,500.0,0.00030238,60]
[390993144,1760276636095,500.0,0.00030238,60]
[390993145,1760276636252,500.0,0.00030238,60]
[390993146,1760276636346,587.21,0.00030238,60]
[390993147,1760276636492,500.0,0.00030238,60]
[390993148,1760276636737,500.0,0.00030238,60]
[390993149,1760276636969,500.0,0.00030238,60]
[390993150,1760276637211,500.0,0.00030238,60]
[390993151,1760276637468,500.0,0.00030238,60]
[390993152,1760276637725,500.0,0.00030238,60]
[390993153,1760276637966,500.0,0.00030238,60]
[390993154,1760276638207,500.0,0.00030238,60]
[390993155,1760276638431,500.0,0.00030238,60]
[390993156,1760276638667,500.0,0.00030238,60]
[390993157,1760276638909,500.0,0.00030238,60]
[390993158,1760276639162,500.0,0.00030238,60]
[390993159,1760276639398,500.0,0.00030238,60]
[390993160,1760276639464,500.0,0.00030238,60]
[390993161,1760276639641,500.0,0.00030238,60]
[390993162,1760276639701,500.0,0.00030238,60]
[390993163,1760276639956,500.0,0.00030238,60]
[390993164,1760276640024,500.0,0.00030238,60]
[390993165,1760276640187,500.0,0.00030238,60]
[390993166,1760276640319,500.0,0.00030238,60]
[390993167,1760276640351,150.0,0.00017992,2]
[390993168,1760276640447,500.0,0.00030238,60]
[390993169,1760276640550,608.41255461,0.00030238,60]
[390993170,1760276640686,500.0,0.00030238,60]
[390993171,1760276640846,150.0,0.00018849,2]
[390993172,1760276640916,500.0,0.00030238,60]
[390993173,1760276641177,500.0,0.00030238,60]
[390993174,1760276641309,150.0,0.00019706,2]
[390993175,1760276641402,500.0,0.00030238,60]
[390993176,1760276641635,500.0,0.00030238,60]
[390993177,1760276641866,606.3,0.00030238,60]
[390993178,1760276641924,169.09,0.00020563,2]
[390993179,1760276642022,500.0,0.00030238,60]
[390993180,1760276642279,500.0,0.00030238,60]
[390993181,1760276642516,500.0,0.00030238,60]
[390993182,1760276643101,242.6,0.00030238,60]
[390993183,1760276645476,500.0,0.00030238,60]
[390993184,1760276645748,500.0,0.00030238,60]
[390993185,1760276646158,500.0,0.00030238,60]
[390993186,1760276646417,461.93,0.00030238,60]
[390993187,1760276647674,500.0,0.00030238,60]
[390993188,1760276647908,326.52,0.00030238,60]
[390993189,1760276649756,500.0,0.00030238,60]
[390993190,1760276649998,500.0,0.00030238,60]
[390993191,1760276650127,326.09417466,0.00020999,2]
[390993192,1760276650229,500.0,0.00030238,60]
[390993193,1760276650504,500.0,0.00030238,60]
[390993194,1760276650747,252.29,0.00030238,60]
[390993195,1760276655490,500.0,0.00030238,60]
[390993196,1760276657347,500.0,0.00030238,60]
[390993197,1760276657856,500.44887995,0.00030238,60]
[390993198,1760276659221,500.91488947,0.00030238,60]
[390993199,1760276661245,500.0,0.00030238,60]
[390993200,1760276661474,500.0,0.00030238,60]
[390993201,1760276663245,500.0,0.00030238,60]
[390993202,1760276665336,500.0,0.00030238,60]
[390993203,1760276667271,501.96330922,0.00030238,60]
[390993204,1760276673848,500.0,0.00030238,60]
[390993205,1760276674074,500.0,0.00030238,60]
[390993206,1760276674143,198.81,0.00030238,60]
[390993207,1760276679632,500.0,0.00030238,60]
[390993208,1760276679910,500.0,0.00030238,60]
[390993209,1760276680146,500.0,0.00030238,60]
[390993210,1760276683525,500.0,0.00030238,60]
[390993211,1760276683774,500.0,0.00030238,60]
[390993212,1760276684025,501.57742464,0.00030238,60]
[390993213,1760276685735,500.0,0.00030238,60]
[390993214,1760276685842,500.0,0.00030238,60]
[390993215,1760276685903,500.0,0.00030238,60]
[390993216,1760276686123,500.0,0.00030238,60]
[390993217,1760276686189,502.46258052,0.00030238,60]
[390993218,1760276686359,500.0,0.00030238,60]
[390993219,1760276686626,500.0,0.00030238,60]
[390993220,1760276686988,500.0,0.00030238,60]
[390993221,1760276687263,500.0,0.00030238,60]
[390993222,1760276687501,597.71,0.00030238,60]
[390993223,1760276688019,500.0,0.00030238,60]
[390993224,1760276688273,500.0,0.00030238,60]
[390993225,1760276688505,500.0,0.00030238,60]
[390993226,1760276690568,500.0,0.00030238,60]
[390993227,1760276690795,501.234996,0.00030238,60]
[390993229,1760276694474,501.90666336,0.00030238,60]
[390993230,1760276694655,244.570631,0.00020999,2]
[390993231,1760276696346,500.0,0.00030238,60]
[390993232,1760276697273,500.0,0.00030238,60]
[390993233,1760276697478,594.34,0.00030238,60]
[390993234,1760276703141,230.4435435,0.00020955,2]
[390993235,1760276704521,500.0,0.00030238,60]
[390993236,1760276704755,500.0,0.00030238,60]
[390993237,1760276704859,500.0,0.00030238,60]
[390993238,1760276705023,500.0,0.00030238,60]
[390993239,1760276705103,500.0,0.00030238,60]
[390993240,1760276705263,500.0,0.00030238,60]
[390993241,1760276705372,500.0,0.00030238,60]
[390993242,1760276705492,500.0,0.00030238,60]
[390993243,1760276705598,500.0,0.00030238,60]
[390993244,1760276705723,241.94,0.00030238,60]
[390993245,1760276705799,500.0,0.00030238,60]
[390993246,1760276705997,500.0,0.00030238,60]
[390993247,1760276706248,500.0,0.00030238,60]
[390993248,1760276706497,500.0,0.00030238,60]
[390993249,1760276706726,500.0,0.00030238,60]
[390993250,1760276706953,500.0,0.00030238,60]
[390993251,1760276707329,500.0,0.00030238,60]
[390993252,1760276707599,500.0,0.00030238,60]
[390993253,1760276707869,500.0,0.00030238,60]
[390993254,1760276708107,584.56,0.00030238,60]
[390993255,1760276716399,500.0,0.00030238,60]
[390993256,1760276716684,500.0,0.00030238,60]
[390993257,1760276717202,150.0,0.0001804,2]
[390993258,1760276717668,150.0,0.00018899,2]
[390993259,1760276718078,150.0,0.00019758,2]
[390993260,1760276718526,150.0,0.00020617,2]
[390993261,1760276718765,500.0,0.00030238,60]
[390993262,1760276720864,500.0,0.00030238,60]
[390993263,1760276722337,500.0,0.00030238,60]
[390993264,1760276725758,517.36172355,0.00030238,60]
[390993265,1760276727505,500.0,0.00030238,60]
[390993266,1760276728951,500.0,0.00030238,60]
[390993267,1760276731002,500.0,0.00030238,60]
[390993268,1760276731678,500.0,0.00030238,60]
[390993269,1760276732449,494.38384467,0.00030238,60]
[390993270,1760276732793,500.0,0.00030238,60]
[390993271,1760276733368,500.0,0.00030238,60]
[390993272,1760276735361,500.0,0.00030238,60]
[390993273,1760276736001,500.0,0.00030238,60]
[390993274,1760276736252,157.15,0.00030238,60]
[390993277,1760276736922,500.0,0.00030238,60]
[390993279,1760276738060,500.0,0.00030238,60]
[390993280,1760276738307,500.0,0.00030238,60]
[390993281,1760276738569,500.0,0.00030238,60]
[390993282,1760276738795,500.0,0.00030238,60]
[390993283,1760276739034,193.78,0.00030238,60]
[390993284,1760276741665,480.0,0.00030238,60]
[390993285,1760276743103,500.0,0.00030238,60]
[390993286,1760276743349,500.0,0.00030238,60]
[390993287,1760276744389,500.0,0.00030238,60]
[390993288,1760276746180,500.0,0.00030238,60]
[390993289,1760276746414,500.0,0.00030238,60]
[390993290,1760276746700,500.0,0.00030238,60]
[390993291,1760276747068,500.0,0.00030238,60]
[390993292,1760276747156,500.0,0.00030238,60]
[390993293,1760276747350,500.0,0.00030238,60]
[390993294,1760276747629,500.0,0.00030238,60]
[390993295,1760276747849,500.0,0.00030238,60]
[390993296,1760276748075,500.0,0.00030238,60]